[Event "106th British-ch Major 2019"]
[Site "Torquay"]
[Date "2019.07.28"]
[Round "2.1"]
[White "Rushbrooke, Remy"]
[Black "Clarke, Brandon Gi"]
[Result "0-1"]
[ECO "E69"]
[WhiteElo "1963"]
[BlackElo "2433"]
[Annotator "NA"]
[PlyCount "64"]
[EventDate "2019.07.27"]
[EventType "swiss"]
[EventCountry "GBR"]
[SourceTitle "playchess.com"]
[Source "ChessBase"]
[SourceQuality "1"]
[TimeControl "40/5400+30:1800+30"]

1. d4 {[%emt 0:00:00]} Nf6 {[%emt 0:00:00]} 2. Nf3 {[%emt 0:00:00]} g6 {[%emt 0:00:00]} 3. g3 {[%emt 0:00:00]} Bg7 {[%emt 0:00:00]} 4. Bg2 {[%emt 0:00:07]} O-O {[%emt 0:00:00]} 5. c4 {[%emt 0:00:10]} d6 {[%emt 0:00:06]} 6. Nc3 {[%emt 0:00:05]} Nbd7 {[%emt 0:01:43]} 7. O-O {[%emt 0:00:13]} e5 {[%emt 0:00:03]} 8. e4 {[%emt 0:00:25]} c6 {[%emt 0:00:11]} 9. h3 {[%emt 0:00:05]} Qb6 {[%emt 0:00:19]} 10. c5 {[%emt 0:01:24]} dxc5 {[%emt 0:00:13]} 11. dxe5 {[%emt 0:00:03]} Ne8 {[%emt 0:00:15]} 12. Na4 {[%emt 0:00:29]} Qc7 {[%emt 0:23:31]} 13. e6 {[%emt 0:11:25]} fxe6 {[%emt 0:01:08]} 14. Ng5 {[%emt 0:00:41]} Qe5 {[%emt 0:09:13]} 15. Qb3 {[%emt 0:11:39]} b5 {[%emt 0:03:22]} 16. Nc3 {[%emt 0:03:33]} c4 {[%emt 0:02:15]} 17. Qc2 {[%emt 0:03:10]} Nb6 {[%emt 0:31:57]} 18. Be3 {[%emt 0:04:58]} Qc7 {[%emt 0:11:57]} 19. Bc5 {[%emt 0:16:15]} Rf6 {[%emt 0:04:43]} 20. b4 {[%emt 0:09:53]} cxb3 {[%emt 0:06:01]} 21. axb3 {[%emt 0:03:10]} e5 {[%emt 0:00:10]} 22. h4 {[%emt 0:09:14]} h6 {[%emt 0:00:25]} 23. Nf3 {[%emt 0:00:41]} Rf7 {[%emt 0:01:14]} 24. Qd2 {[%emt 0:03:38]} Be6 {[%emt 0:00:53]} 25. Be3 {[%emt 0:00:51]} Rd8 {[%emt 0:01:49]} 26. Qc1 {[%emt 0:00:21]} Kh7 {[%emt 0:00:14]} 27. h5 {[%emt 0:00:11]} gxh5 {[%emt 0:00:13]} 28. Nh4 {[%emt 0:02:39]} Nf6 {[%emt 0:00:14]} 29. Nf5 {[%emt 0:07:42]} Ng4 {[%emt 0:01:24]} 30. Bh3 {[%emt 0:00:39]} Bxf5 {[%emt 0:00:30]} 31. exf5 {[%emt 0:00:07]} e4 {[%emt 0:00:47]} 32. Bxg4 {[%emt 0:01:38]} hxg4 {[%emt 0:00:01]} 0-1

[Event "106th British-ch Major 2019"]
[Site "Torquay"]
[Date "2019.07.28"]
[Round "2.2"]
[White "Brown, Tom"]
[Black "Taylor, Adam A"]
[Result "1/2-1/2"]
[ECO "E55"]
[WhiteElo "1953"]
[BlackElo "2168"]
[Annotator "NA"]
[PlyCount "63"]
[EventDate "2019.07.27"]
[EventType "swiss"]
[EventCountry "GBR"]
[SourceTitle "playchess.com"]
[Source "ChessBase"]
[SourceQuality "1"]
[TimeControl "40/5400+30:1800+30"]

1. d4 {[%emt 0:00:00]} Nf6 {[%emt 0:00:00]} 2. c4 {[%emt 0:00:00]} e6 {[%emt 0:00:00]} 3. Nc3 {[%emt 0:00:00]} Bb4 {[%emt 0:00:06]} 4. e3 {[%emt 0:00:18]} d5 {[%emt 0:02:49]} 5. Nf3 {[%emt 0:00:52]} O-O {[%emt 0:00:38]} 6. Bd3 {[%emt 0:00:52]} c5 {[%emt 0:15:08]} 7. O-O {[%emt 0:01:15]} dxc4 {[%emt 0:18:21]} 8. Bxc4 {[%emt 0:01:21]} Nbd7 {[%emt 0:00:23]} 9. a3 {[%emt 0:03:19]} Bxc3 {[%emt 0:01:26]} 10. bxc3 {[%emt 0:00:11]} b6 {[%emt 0:03:02]} 11. a4 {[%emt 0:06:41]} Bb7 {[%emt 0:00:57]} 12. Ba3 {[%emt 0:06:04]} Qc7 {[%emt 0:00:51]} 13. Rc1 {[%emt 0:05:41]} Rad8 {[%emt 0:04:28]} 14. Qe2 {[%emt 0:05:03]} e5 {[%emt 0:26:26]} 15. Rfd1 {[%emt 0:07:27]} e4 {[%emt 0:03:03]} 16. Nd2 {[%emt 0:02:03]} Rfe8 {[%emt 0:02:57]} 17. Nb3 {[%emt 0:06:01]} Bc6 {[%emt 0:07:34]} 18. a5 {[%emt 0:08:38]} Ba4 {[%emt 0:01:16]} 19. Bxf7+ {[%emt 0:01:59]} Kxf7 {[%emt 0:00:14]} 20. Qc4+ {[%emt 0:00:09]} Kg6 {[%emt 0:00:29]} 21. Qxa4 {[%emt 0:00:26]} c4 {[%emt 0:03:59]} 22. Nd2 {[%emt 0:03:13]} Rc8 {[%emt 0:00:02]} 23. axb6 {[%emt 0:07:07]} axb6 {[%emt 0:00:05]} 24. Qc2 {[%emt 0:01:12]} Ra8 {[%emt 0:06:32]} 25. Ra1 {[%emt 0:02:29]} Qc6 {[%emt 0:00:39]} 26. Bb4 {[%emt 0:02:10]} Kf7 {[%emt 0:00:38]} 27. Ra2 {[%emt 0:01:05]} Rxa2 {[%emt 0:00:44]} 28. Qxa2 {[%emt 0:00:03]} b5 {[%emt 0:00:02]} 29. Ra1 {[%emt 0:01:38]} Nd5 {[%emt 0:00:21]} 30. Qb2 {[%emt 0:03:48]} Kg8 {[%emt 0:00:28]} 31. h3 {[%emt 0:01:32]} N7b6 {[%emt 0:00:41]} 32. Ra3 {[%emt 0:06:59]} 1/2-1/2

[Event "106th British-ch Major 2019"]
[Site "Torquay"]
[Date "2019.07.28"]
[Round "2.3"]
[White "Graham, David B"]
[Black "Cleary, Mark"]
[Result "1-0"]
[ECO "C55"]
[WhiteElo "2162"]
[BlackElo "2023"]
[Annotator "NA"]
[PlyCount "69"]
[EventDate "2019.07.27"]
[EventType "swiss"]
[EventCountry "GBR"]
[SourceTitle "playchess.com"]
[Source "ChessBase"]
[SourceQuality "1"]
[TimeControl "40/5400+30:1800+30"]

1. e4 {[%emt 0:00:00]} e5 {[%emt 0:00:00]} 2. Nf3 {[%emt 0:00:00]} Nc6 {[%emt 0:00:00]} 3. Bc4 {[%emt 0:00:00]} Nf6 {[%emt 0:00:00]} 4. d3 {[%emt 0:00:00]} Be7 {[%emt 0:00:00]} 5. O-O {[%emt 0:02:02]} O-O {[%emt 0:00:12]} 6. Re1 {[%emt 0:00:59]} d6 {[%emt 0:00:17]} 7. a4 {[%emt 0:01:18]} Na5 {[%emt 0:05:41]} 8. Ba2 {[%emt 0:00:10]} c5 {[%emt 0:00:23]} 9. c3 {[%emt 0:03:29]} Nc6 {[%emt 0:03:36]} 10. Na3 {[%emt 0:00:42]} Bg4 {[%emt 0:09:05]} 11. Nc4 {[%emt 0:07:08]} Ne8 {[%emt 0:06:03]} 12. Ne3 {[%emt 0:04:48]} Bxf3 {[%emt 0:02:25]} 13. Qxf3 {[%emt 0:00:21]} Bg5 {[%emt 0:00:35]} 14. Nf5 {[%emt 0:15:44]} Bxc1 {[%emt 0:08:01]} 15. Raxc1 {[%emt 0:00:05]} Qf6 {[%emt 0:03:09]} 16. Qh3 {[%emt 0:07:15]} Nc7 {[%emt 0:07:32]} 17. Ne3 {[%emt 0:09:45]} Ne6 {[%emt 0:16:23]} 18. Nd5 {[%emt 0:02:37]} Qg5 {[%emt 0:02:00]} 19. Rcd1 {[%emt 0:02:27]} Kh8 {[%emt 0:02:04]} 20. Qf5 {[%emt 0:03:59]} h6 {[%emt 0:03:39]} 21. Re3 {[%emt 0:05:17]} Nf4 {[%emt 0:03:34]} 22. Qxg5 {[%emt 0:03:08]} hxg5 {[%emt 0:00:13]} 23. Nc7 {[%emt 0:05:46]} Rad8 {[%emt 0:02:21]} 24. g3 {[%emt 0:00:36]} Ng6 {[%emt 0:01:15]} 25. Rf3 {[%emt 0:04:24]} Rd7 {[%emt 0:00:58]} 26. Nd5 {[%emt 0:00:11]} Kh7 {[%emt 0:04:50]} 27. Kg2 {[%emt 0:01:53]} g4 {[%emt 0:07:21]} 28. Rf5 {[%emt 0:02:23]} Kh6 {[%emt 0:00:05]} 29. Rh1 {[%emt 0:03:08]} Nge7 {[%emt 0:08:53]} 30. Nxe7 {[%emt 0:01:55]} Rxe7 {[%emt 0:00:46]} 31. h3 {[%emt 0:00:25]} gxh3+ {[%emt 0:00:25]} 32. Rxh3+ {[%emt 0:00:03]} Kg6 {[%emt 0:00:08]} 33. f4 {[%emt 0:03:07]} f6 {[%emt 0:01:04]} 34. Rfh5 {[%emt 0:00:56]} f5 {[%emt 0:00:33]} 35. Rg5+ {[%emt 0:00:19]} 1-0

[Event "106th British-ch Major 2019"]
[Site "Torquay"]
[Date "2019.07.28"]
[Round "2.4"]
[White "Barton, R Alan"]
[Black "Ethelontis, Alexandros N"]
[Result "1/2-1/2"]
[ECO "A13"]
[WhiteElo "1941"]
[BlackElo "2154"]
[Annotator "NA"]
[PlyCount "56"]
[EventDate "2019.07.27"]
[EventType "swiss"]
[EventCountry "GBR"]
[SourceTitle "playchess.com"]
[Source "ChessBase"]
[SourceQuality "1"]
[TimeControl "40/5400+30:1800+30"]

1. Nf3 {[%emt 0:00:00]} Nf6 {[%emt 0:00:00]} 2. c4 {[%emt 0:00:15]} e6 {[%emt 0:00:00]} 3. b3 {[%emt 0:00:46]} d5 {[%emt 0:00:30]} 4. Bb2 {[%emt 0:00:05]} a5 {[%emt 0:00:36]} 5. e3 {[%emt 0:05:57]} c6 {[%emt 0:04:40]} 6. Nc3 {[%emt 0:02:56]} Nbd7 {[%emt 0:01:39]} 7. d4 {[%emt 0:00:32]} Bb4 {[%emt 0:09:46]} 8. a3 {[%emt 0:05:24]} Bxc3+ {[%emt 0:01:00]} 9. Bxc3 {[%emt 0:00:05]} Ne4 {[%emt 0:00:16]} 10. Qc2 {[%emt 0:03:09]} O-O {[%emt 0:06:25]} 11. Bd3 {[%emt 0:01:33]} f5 {[%emt 0:02:27]} 12. h4 {[%emt 0:09:34]} Ndf6 {[%emt 0:09:19]} 13. Ne5 {[%emt 0:02:38]} Nd7 {[%emt 0:05:21]} 14. Nf3 {[%emt 0:03:47]} Ndf6 {[%emt 0:07:13]} 15. Ne5 {[%emt 0:00:05]} Bd7 {[%emt 0:00:21]} 16. c5 {[%emt 0:06:38]} Be8 {[%emt 0:05:00]} 17. f3 {[%emt 0:03:19]} Ng3 {[%emt 0:08:33]} 18. Rh3 {[%emt 0:00:49]} Nfh5 {[%emt 0:00:16]} 19. O-O-O {[%emt 0:09:32]} g5 {[%emt 0:01:36]} 20. hxg5 {[%emt 0:08:22]} Qxg5 {[%emt 0:00:13]} 21. f4 {[%emt 0:02:40]} Qg7 {[%emt 0:04:01]} 22. Be1 {[%emt 0:02:28]} Kh8 {[%emt 0:03:49]} 23. Qf2 {[%emt 0:02:39]} Rg8 {[%emt 0:00:28]} 24. Nf3 {[%emt 0:03:38]} Qe7 {[%emt 0:06:09]} 25. Ng5 {[%emt 0:01:59]} h6 {[%emt 0:01:45]} 26. Nf3 {[%emt 0:06:04]} Kh7 {[%emt 0:02:37]} 27. Ne5 {[%emt 0:00:54]} Qg7 {[%emt 0:01:59]} 28. Qf3 {[%emt 0:01:07]} Ra7 {[%emt 0:04:06]} 1/2-1/2

[Event "106th British-ch Major 2019"]
[Site "Torquay"]
[Date "2019.07.28"]
[Round "2.6"]
[White "Modi, Kishan Jagdish"]
[Black "Unnikrishnan, Midhun P"]
[Result "*"]
[ECO "C56"]
[WhiteElo "1923"]
[BlackElo "2142"]
[Annotator "NA"]
[PlyCount "41"]
[EventDate "2019.07.27"]
[EventType "swiss"]
[EventCountry "GBR"]
[SourceTitle "playchess.com"]
[Source "ChessBase"]
[SourceQuality "1"]
[TimeControl "40/5400+30:1800+30"]

1. e4 {[%emt 0:00:00]} e5 {[%emt 0:00:00]} 2. Nf3 {[%emt 0:00:00]} Nc6 {[%emt 0:00:00]} 3. d4 {[%emt 0:00:00]} exd4 {[%emt 0:00:00]} 4. Bc4 {[%emt 0:00:00]} Nf6 {[%emt 0:00:07]} 5. e5 {[%emt 0:00:04]} d5 {[%emt 0:00:23]} 6. Bb5 {[%emt 0:00:05]} Ne4 {[%emt 0:00:06]} 7. Nxd4 {[%emt 0:00:06]} Bd7 {[%emt 0:00:16]} 8. Bxc6 {[%emt 0:00:05]} bxc6 {[%emt 0:00:06]} 9. O-O {[%emt 0:00:05]} Bc5 {[%emt 0:00:57]} 10. f3 {[%emt 0:00:06]} Ng5 {[%emt 0:00:07]} 11. f4 {[%emt 0:00:04]} Ne4 {[%emt 0:00:07]} 12. Be3 {[%emt 0:00:04]} Bb6 {[%emt 0:00:17]} 13. c3 {[%emt 0:00:48]} c5 {[%emt 0:10:05]} 14. Nc2 {[%emt 0:00:35]} Bf5 {[%emt 0:03:16]} 15. Nd2 {[%emt 0:08:33]} Nxd2 {[%emt 0:12:25]} 16. Qxd2 {[%emt 0:00:28]} O-O {[%emt 0:02:19]} 17. Rfd1 {[%emt 0:28:46]} f6 {[%emt 0:17:28]} 18. Ne1 {[%emt 0:02:36]} fxe5 {[%emt 0:06:59]} 19. Qxd5+ {[%emt 0:00:38]} Qxd5 {[%emt 0:00:05]} 20. Rxd5 {[%emt 0:00:07]} exf4 {[%emt 0:00:29]} 21. Bf2 {[%emt 0:00:40]} *

[Event "106th British-ch Major 2019"]
[Site "Torquay"]
[Date "2019.07.28"]
[Round "2.8"]
[White "Metcalfe, Charlie P"]
[Black "Pollack, Oscar"]
[Result "0-1"]
[ECO "A57"]
[WhiteElo "1739"]
[BlackElo "2088"]
[Annotator "NA"]
[PlyCount "120"]
[EventDate "2019.07.27"]
[EventType "swiss"]
[EventCountry "GBR"]
[SourceTitle "playchess.com"]
[Source "ChessBase"]
[SourceQuality "1"]
[TimeControl "40/5400+30:1800+30"]

1. d4 {[%emt 0:00:00]} Nf6 {[%emt 0:00:00]} 2. Nf3 {[%emt 0:00:00]} c5 {[%emt 0:00:00]} 3. d5 {[%emt 0:00:00]} b5 {[%emt 0:00:00]} 4. c4 {[%emt 0:00:00]} Bb7 {[%emt 0:00:22]} 5. a4 {[%emt 0:00:49]} Qa5+ {[%emt 0:04:06]} 6. Bd2 {[%emt 0:20:36]} b4 {[%emt 0:00:09]} 7. Qc2 {[%emt 0:01:27]} d6 {[%emt 0:04:38]} 8. b3 {[%emt 0:09:07]} Nbd7 {[%emt 0:03:37]} 9. e4 {[%emt 0:01:48]} g6 {[%emt 0:00:43]} 10. Bc1 {[%emt 0:00:09]} Bg7 {[%emt 0:00:41]} 11. Bb2 {[%emt 0:00:06]} Qc7 {[%emt 0:01:34]} 12. Bd3 {[%emt 0:03:35]} a5 {[%emt 0:01:37]} 13. Nbd2 {[%emt 0:03:03]} O-O-O {[%emt 0:02:54]} 14. O-O-O {[%emt 0:00:19]} e5 {[%emt 0:07:08]} 15. g3 {[%emt 0:01:27]} Ng4 {[%emt 0:05:23]} 16. Rhf1 {[%emt 0:00:41]} Rdf8 {[%emt 0:02:23]} 17. h3 {[%emt 0:00:37]} Nh6 {[%emt 0:00:03]} 18. Nh4 {[%emt 0:01:36]} Kb8 {[%emt 0:04:57]} 19. Rde1 {[%emt 0:09:47]} Bc8 {[%emt 0:02:17]} 20. f4 {[%emt 0:03:16]} Qd8 {[%emt 0:07:13]} 21. Nhf3 {[%emt 0:04:21]} f6 {[%emt 0:02:44]} 22. Kb1 {[%emt 0:06:36]} Rhg8 {[%emt 0:03:29]} 23. Nh4 {[%emt 0:02:17]} exf4 {[%emt 0:05:42]} 24. gxf4 {[%emt 0:00:22]} f5 {[%emt 0:03:00]} 25. Ng2 {[%emt 0:03:07]} Bxb2 {[%emt 0:00:44]} 26. Qxb2 {[%emt 0:00:43]} fxe4 {[%emt 0:03:07]} 27. Nxe4 {[%emt 0:00:21]} Nf6 {[%emt 0:07:52]} 28. Ng5 {[%emt 0:00:39]} Nf5 {[%emt 0:03:01]} 29. Ne3 {[%emt 0:01:02]} Nd4 {[%emt 0:05:25]} 30. Nc2 {[%emt 0:01:19]} Nxc2 {[%emt 0:02:09]} 31. Bxc2 {[%emt 0:00:31]} Nh5 {[%emt 0:00:53]} 32. Qc1 {[%emt 0:02:43]} Nxf4 {[%emt 0:02:05]} 33. Nxh7 {[%emt 0:00:02]} Rf7 {[%emt 0:00:17]} 34. Rxf4 {[%emt 0:00:59]} Rxh7 {[%emt 0:00:06]} 35. Rf3 {[%emt 0:04:48]} Rxh3 {[%emt 0:02:27]} 36. Rxh3 {[%emt 0:00:02]} Bxh3 {[%emt 0:00:08]} 37. Qh6 {[%emt 0:02:02]} Bf5 {[%emt 0:03:00]} 38. Bxf5 {[%emt 0:00:01]} gxf5 {[%emt 0:00:07]} 39. Re6 {[%emt 0:00:43]} Rg1+ {[%emt 0:00:35]} 40. Kb2 {[%emt 0:00:20]} Qg8 {[%emt 0:00:51]} 41. Re2 {[%emt 0:37:01]} Rg6 {[%emt 0:34:32]} 42. Qh4 {[%emt 0:03:13]} Rg2 {[%emt 0:01:58]} 43. Rxg2 {[%emt 0:04:09]} Qxg2+ {[%emt 0:00:01]} 44. Kb1 {[%emt 0:00:28]} Qf1+ {[%emt 0:00:17]} 45. Kb2 {[%emt 0:00:36]} Qe2+ {[%emt 0:00:11]} 46. Kb1 {[%emt 0:00:37]} Qd3+ {[%emt 0:00:29]} 47. Ka2 {[%emt 0:00:16]} Qc2+ {[%emt 0:00:07]} 48. Ka1 {[%emt 0:00:04]} Qc1+ {[%emt 0:00:17]} 49. Ka2 {[%emt 0:00:04]} Qa3+ {[%emt 0:00:04]} 50. Kb1 {[%emt 0:00:12]} Qxb3+ {[%emt 0:00:06]} 51. Kc1 {[%emt 0:00:08]} Qe3+ {[%emt 0:00:14]} 52. Kb2 {[%emt 0:00:56]} Qd4+ {[%emt 0:00:15]} 53. Qxd4 {[%emt 0:00:40]} cxd4 {[%emt 0:00:01]} 54. c5 {[%emt 0:00:19]} dxc5 {[%emt 0:00:08]} 55. d6 {[%emt 0:00:01]} Kc8 {[%emt 0:00:08]} 56. d7+ {[%emt 0:00:01]} Kxd7 {[%emt 0:00:07]} 57. Kc2 {[%emt 0:00:30]} c4 {[%emt 0:00:09]} 58. Kd2 {[%emt 0:00:16]} b3 {[%emt 0:00:05]} 59. Kc1 {[%emt 0:00:03]} c3 {[%emt 0:00:08]} 60. Kb1 {[%emt 0:00:32]} f4 {[%emt 0:00:07]} 0-1

[Event "106th British-ch Major 2019"]
[Site "Torquay"]
[Date "2019.07.28"]
[Round "2.9"]
[White "Renshaw, Lucas"]
[Black "Sugden, John N"]
[Result "0-1"]
[ECO "C11"]
[WhiteElo "1596"]
[BlackElo "2068"]
[Annotator "NA RC"]
[PlyCount "90"]
[EventDate "2019.07.27"]
[EventType "swiss"]
[EventCountry "GBR"]
[SourceTitle "playchess.com"]
[Source "ChessBase"]
[SourceQuality "1"]
[TimeControl "40/5400+30:1800+30"]

1. e4 {[%emt 0:00:00]} c6 {[%emt 0:00:00]} 2. d4 {[%emt 0:00:00]} d5 {[%emt 0:00:07]} 3. f3 {[%emt 0:00:20]} e6 {[%emt 0:00:28]} 4. Nc3 {[%emt 0:00:03]} Nf6 {[%emt 0:00:51]} 5. e5 {[%emt 0:00:10]} Nfd7 {[%emt 0:00:23]} 6. f4 {[%emt 0:00:23]} c5 {[%emt 0:00:25]} 7. Nf3 {[%emt 0:02:24]} Nc6 {[%emt 0:00:20]} 8. Be3 {[%emt 0:00:33]} cxd4 {[%emt 0:10:10]} 9. Nxd4 {[%emt 0:01:24]} Bc5 {[%emt 0:00:47]} 10. Qd2 {[%emt 0:15:17]} a6 {[%emt 0:14:40]} 11. Be2 {[%emt 0:08:20]} Nxd4 {[%emt 0:03:14]} 12. Bxd4 {[%emt 0:00:11]} Bxd4 {[%emt 0:01:35]} 13. Qxd4 {[%emt 0:00:05]} Qb6 {[%emt 0:00:32]} 14. Qxb6 {[%emt 0:08:11]} Nxb6 {[%emt 0:00:09]} 15. a4 {[%emt 0:03:54]} Bd7 {[%emt 0:04:07]} 16. a5 {[%emt 0:08:41]} Nc8 {[%emt 0:00:13]} 17. Bd3 {[%emt 0:02:53]} Ne7 {[%emt 0:02:55]} 18. Kf2 {[%emt 0:08:49]} Rc8 {[%emt 0:05:15]} 19. Ne2 {[%emt 0:03:56]} O-O {[%emt 0:09:41]} 20. Ke3 {[%emt 0:03:55]} Nc6 {[%emt 0:02:56]} 21. Nd4 {[%emt 0:04:27]} f6 {[%emt 0:06:46]} 22. Nxc6 {[%emt 0:04:51]} Bxc6 {[%emt 0:00:11]} 23. Rhf1 {[%emt 0:01:10]} fxe5 {[%emt 0:09:07]} 24. fxe5 {[%emt 0:00:24]} d4+ {[%emt 0:01:37]} 25. Kxd4 {[%emt 0:01:00]} Rfd8+ {[%emt 0:01:15]} 26. Ke3 {[%emt 0:01:37]} Bxg2 {[%emt 0:00:13]} 27. Rf2 {[%emt 0:02:15]} Bd5 {[%emt 0:05:39]} 28. Rf4 {[%emt 0:04:57]} Rc5 {[%emt 0:08:27]} 29. b4 {[%emt 0:02:04]} Rc7 {[%emt 0:00:10]} 30. Raf1 {[%emt 0:00:38]} Re7 {[%emt 0:01:25]} 31. c4 {[%emt 0:05:08]} Bc6 {[%emt 0:00:11]} 32. R1f2 {[%emt 0:01:22]} Red7 {[%emt 0:01:14]} 33. Bf1 {[%emt 0:00:32]} Rd1 {[%emt 0:04:45]} 34. b5 {[%emt 0:02:21]} axb5 {[%emt 0:03:21]} 35. cxb5 {[%emt 0:00:06]} Re1+ {[%emt 0:02:04]} 36. Re2 {[%emt 0:01:49]} Rxf1 {[%emt 0:00:12]} 37. Rxf1 {[%emt 0:00:03]} Bxb5 {[%emt 0:00:12]} 38. Rb1 {[%emt 0:01:27]} Bxe2 {[%emt 0:00:09]} 39. Kxe2 {[%emt 0:00:03]} Rd5 {[%emt 0:00:59]} 40. Rxb7 {[%emt 0:00:24]} Rxe5+ {[%emt 0:00:20]} 41. Kf3 {[%emt 0:30:05]} Rxa5 {[%emt 0:30:13]} 42. Kf4 {[%emt 0:00:49]} Rf5+ {[%emt 0:02:26]} 43. Kg4 {[%emt 0:00:22]} h5+ {[%emt 0:00:00]} 44. Kg3 {[%emt 0:00:00]} Kh7 {[%emt 0:00:00]} 45. Kh4 {[%emt 0:00:00]} Kg6 {[%emt 0:00:00]} 0-1

[Event "106th British-ch Major 2019"]
[Site "Torquay"]
[Date "2019.07.28"]
[Round "2.10"]
[White "Taylor, William J"]
[Black "Cocks, Elliot"]
[Result "1/2-1/2"]
[ECO "B32"]
[WhiteElo "2062"]
[BlackElo "1907"]
[Annotator "NA RC"]
[PlyCount "99"]
[EventDate "2019.07.27"]
[EventType "swiss"]
[EventCountry "GBR"]
[SourceTitle "playchess.com"]
[Source "ChessBase"]
[SourceQuality "1"]
[TimeControl "40/5400+30:1800+30"]

1. e4 {[%emt 0:00:00]} c5 {[%emt 0:00:00]} 2. Nf3 {[%emt 0:00:00]} Nc6 {[%emt 0:00:00]} 3. d4 {[%emt 0:00:00]} cxd4 {[%emt 0:00:03]} 4. Nxd4 {[%emt 0:00:00]} e5 {[%emt 0:00:08]} 5. Nb5 {[%emt 0:00:27]} d6 {[%emt 0:00:23]} 6. c4 {[%emt 0:00:36]} Be7 {[%emt 0:00:12]} 7. N5c3 {[%emt 0:01:55]} f5 {[%emt 0:09:26]} 8. Bd3 {[%emt 0:29:33]} f4 {[%emt 0:03:21]} 9. Nd5 {[%emt 0:00:57]} Nf6 {[%emt 0:08:16]} 10. Nxe7 {[%emt 0:03:32]} Qxe7 {[%emt 0:00:29]} 11. Nc3 {[%emt 0:00:13]} O-O {[%emt 0:01:21]} 12. f3 {[%emt 0:04:30]} Nd4 {[%emt 0:10:28]} 13. Ne2 {[%emt 0:19:35]} Ne6 {[%emt 0:04:46]} 14. Bd2 {[%emt 0:03:08]} Bd7 {[%emt 0:06:50]} 15. Bb4 {[%emt 0:01:53]} a5 {[%emt 0:04:52]} 16. Ba3 {[%emt 0:01:03]} Rac8 {[%emt 0:02:07]} 17. Qd2 {[%emt 0:01:07]} Nc5 {[%emt 0:01:35]} 18. Nc3 {[%emt 0:07:14]} Be6 {[%emt 0:07:54]} 19. Be2 {[%emt 0:00:23]} b6 {[%emt 0:06:58]} 20. O-O-O {[%emt 0:02:27]} Rfd8 {[%emt 0:00:23]} 21. Kb1 {[%emt 0:00:37]} Qf7 {[%emt 0:01:48]} 22. Nd5 {[%emt 0:03:54]} Nxd5 {[%emt 0:02:08]} 23. cxd5 {[%emt 0:00:14]} Bd7 {[%emt 0:00:20]} 24. Rc1 {[%emt 0:08:00]} a4 {[%emt 0:14:24]} 25. Rc2 {[%emt 0:02:05]} Qe7 {[%emt 0:01:58]} 26. Qb4 {[%emt 0:01:56]} Rb8 {[%emt 0:00:32]} 27. Bb5 {[%emt 0:00:39]} Qe8 {[%emt 0:01:54]} 28. Bxd7 {[%emt 0:00:52]} Qxd7 {[%emt 0:00:07]} 29. Qd2 {[%emt 0:00:43]} Rf8 {[%emt 0:01:26]} 30. Rhc1 {[%emt 0:02:49]} Rb7 {[%emt 0:01:44]} 31. Rc4 {[%emt 0:00:51]} Rfb8 {[%emt 0:01:48]} 32. R4c2 {[%emt 0:01:10]} Ra8 {[%emt 0:02:09]} 33. Qe2 {[%emt 0:00:57]} Kf7 {[%emt 0:01:04]} 34. Rd1 {[%emt 0:00:48]} g5 {[%emt 0:03:41]} 35. g3 {[%emt 0:00:04]} Rg8 {[%emt 0:00:21]} 36. Qf2 {[%emt 0:02:06]} Qe7 {[%emt 0:00:40]} 37. Qg2 {[%emt 0:01:10]} Qd7 {[%emt 0:00:34]} 38. g4 {[%emt 0:00:24]} Rg6 {[%emt 0:01:27]} 39. Qh3 {[%emt 0:00:47]} Kg7 {[%emt 0:00:16]} 40. Rh1 {[%emt 0:00:38]} Rh6 {[%emt 0:01:34]} 41. Qg2 {[%emt 0:02:24]} Qb5 {[%emt 0:07:53]} 42. h4 {[%emt 0:06:05]} Rxh4 {[%emt 0:05:14]} 43. Rxh4 {[%emt 0:00:07]} gxh4 {[%emt 0:00:04]} 44. Qh3 {[%emt 0:07:24]} Qd3 {[%emt 0:09:02]} 45. Qxh4 {[%emt 0:00:11]} Nb3 {[%emt 0:00:06]} 46. Qg5+ {[%emt 0:01:16]} Kh8 {[%emt 0:00:08]} 47. Qf6+ {[%emt 0:04:52]} Rg7 {[%emt 0:00:13]} 48. Qf8+ {[%emt 0:00:46]} Rg8 {[%emt 0:00:11]} 49. Qf6+ {[%emt 0:01:04]} Rg7 {[%emt 0:00:06]} 50. Qf8+ {[%emt 0:00:05]} 1/2-1/2